[Event "Saint Louis Norm Congress-GM 2022"]
[Site "Saint Louis"]
[Date "2022.05.24"]
[Round "9.1"]
[White "Kavutskiy, Konstantin"]
[Black "Stearman, Josiah"]
[Result "1-0"]
[ECO "A11"]
[WhiteElo "2407"]
[BlackElo "2375"]
[Annotator "TA"]
[PlyCount "119"]
[EventDate "2022.05.20"]
[EventType "tourn"]
[EventCountry "USA"]
[SourceTitle "playchess.com"]
[Source "ChessBase"]
[SourceQuality "1"]
[TimeControl "5400+30"]

{[%evp 14,118,0,0,7,0,18,0,0,0,0,0,0,0,0,0,108,97,94,93,94,97,104,107,98,100,128,86,102,91,83,91,134,131,158,140,139,93,106,92,92,88,86,72,77,77,74,76,84,72,77,70,70,70,72,79,235,214,1008,1043,1043,259,955,938,775,269,317,317,271,269,224,225,29975,29976,29976,29977,29977,29978,29979,29980,29980,29980,29980,29981,29982,29982,29983,29983,29983,29984,29984,29985,29985,29986,29986,29987,29987,29987,29989,29990,29991,29992,29997,29998,29998,29999,29999]} 1. Nf3 {[%emt 0:11:13]} d5 {[%emt 0:00:14]} 2. e3 {[%emt 0:00:09]} Nf6 {[%emt 0:00:19]} 3. c4 {[%emt 0:00:24]} e6 {[%emt 0:00:18]} 4. b3 {[%emt 0:00:17]} Nbd7 {[%emt 0:01:04]} 5. Nc3 {[%emt 0:03:24]} c6 {[%emt 0:00:14]} 6. Bb2 {[%emt 0:00:13]} Bd6 {[%emt 0:00:18]} 7. Be2 {[%emt 0:00:30]} O-O {[%emt 0:00:13]} 8. Qc2 {[%emt 0:00:37]} e5 {[%emt 0:05:51] A11: English Opening: 1...c6.} 9. cxd5 {[%emt 0:00:45]} Nxd5 {[%emt 0:00:18]} 10. Ne4 {[%emt 0:00:41]} Bc7 {[%emt 0:00:26] The position is equal.} 11. Ng3 {[%emt 0:00:45]} Re8 {[%emt 0:01:06]} 12. O-O {[%emt 0:02:11]} N7f6 {[%emt 0:00:40]} 13. d3 {[%emt 0:04:59][%cal Bd2d3,Bd3d4][%mdl 32] [#]} h6 $146 {[%emt 0:03:35]} ({Predecessor:} 13... Qe7 14. a3 Bd7 15. Rfe1 Rad8 16. b4 a6 17. Qc5 Bd6 18. Qc2 Bc7 19. d4 e4 {½-½ (26) Schaefer,U (2473)-Taras,I (2440) ICCF email 2019}) 14. Rfd1 {[%emt 0:02:09]} g5 {[%emt 0:01:07]} (14... Qe7 $11 {keeps the balance.}) 15. d4 {[%emt 0:07:13][%cal Rd4e5]} e4 {[%emt 0:18:34]} 16. Ne5 {[%emt 0:00:55]} g4 {[%emt 0:01:30]} 17. Nxe4 {[%emt 0:06:28] White is more active.} Nxe4 {[%emt 0:00:16]} 18. Qxe4 {[%emt 0:00:17]} f5 {[%emt 0:00:02]} 19. Qc2 {[%emt 0:02:54][%cal Oe2g4]} Qg5 {[%emt 0:01:02]} 20. Bc4 {[%emt 0:06:34] Strongly threatening Bxd5+.} Be6 {[%emt 0:00:44]} 21. e4 {[%emt 0:00:39]} fxe4 {[%emt 0:00:56]} 22. Qxe4 {[%emt 0:00:13]} Bxe5 {[%emt 0:00:35]} 23. dxe5 {[%emt 0:00:57]} Rf8 {[%emt 0:00:49]} 24. Bc1 {[%emt 0:06:19]} Qg7 {[%emt 0:02:16]} 25. Be3 {[%emt 0:01:30]} (25. Ba3 $142) 25... Rae8 $16 {[%emt 0:01:18][%cal Ba8e8,Be8e6,Be6e5][%mdl 32]} 26. Rac1 {[%emt 0:03:24]} ({Much weaker is} 26. Bxa7 $6 b6 27. Bxd5 cxd5 $15) 26... Nxe3 {[%emt 0:01:43]} 27. Bxe6+ $1 {[%emt 0:04:05]} ({But not} 27. fxe3 Bxc4 28. Qxc4+ Kh8 $14) 27... Rxe6 {[%emt 0:00:02]} 28. Qxe3 {[%emt 0:00:08]} Rxe5 {[%emt 0:01:04]} 29. Qxa7 {[%emt 0:00:20]} Re2 {[%emt 0:00:22] [#]} 30. Rf1 $1 {[%emt 0:08:01]} Qb2 {[%emt 0:00:39][%cal Oe2f2] White must now prevent ...Rexf2!} 31. Rce1 {[%emt 0:00:50] aiming for Rxe2.} (31. Qxb7 {leads to mate.} Rexf2) 31... Qxa2 {[%emt 0:02:09]} 32. Qd4 {[%emt 0:04:22]} Rxe1 $1 {[%emt 0:00:05]} 33. Rxe1 {[%emt 0:00:06]} Qxb3 {[%emt 0:00:07]} 34. Qxg4+ $14 {[%emt 0:00:22][%mdl 4096] Endgame KQR-KQR} Kh8 $2 {[%emt 0:00:03] A mistake that costs the game.} (34... Kh7 $16) 35. Qg6 $18 {[%emt 0:00:57]} Qd5 $2 {[%emt 0:03:39]} (35... Qf7 36. Qxh6+ Kg8) 36. Qxh6+ {[%emt 0:00:10]} Kg8 {[%emt 0:00:01]} 37. Qg6+ {[%emt 0:00:45]} Kh8 {[%emt 0:00:01]} 38. h3 {[%emt 0:00:54] White wants to mate with Re7.} Qf5 {[%emt 0:00:55]} 39. Qg3 $2 {[%emt 0:00:58]} (39. Qh6+ Kg8 40. Re3) 39... Qf4 {[%emt 0:02:17]} 40. Qxf4 {[%emt 0:01:52]} Rxf4 {[%emt 0:00:02] KR-KR} 41. Re8+ {[%emt 0:00:08]} Kg7 {[%emt 0:00:04]} 42. Re7+ {[%emt 0:00:05]} Rf7 $2 {[%emt 0:00:03] [#]} (42... Kf6 $18 43. Rxb7 Ke5) 43. Rxf7+ $1 {[%emt 0:00:25] White mates.} Kxf7 {[%emt 0:00:06] K3P-KPP} 44. Kf1 {[%emt 0:00:08]} b5 {[%emt 0:00:14]} 45. Ke2 {[%emt 0:01:14]} Kf6 {[%emt 0:00:40]} 46. h4 {[%emt 0:00:15][%cal Bh3h4,Bh4h5][%mdl 32]} c5 {[%emt 0:00:18]} 47. h5 {[%emt 0:00:36]} b4 {[%emt 0:00:17]} 48. Kd3 {[%emt 0:00:13]} b3 {[%emt 0:00:31]} 49. Kc3 {[%emt 0:00:07]} c4 {[%emt 0:00:02]} 50. g4 {[%emt 0:00:12][%cal Bg2g4,Bg4g5,Bg5g6][%mdl 32]} Kg5 {[%emt 0:01:05]} 51. f4+ {[%emt 0:00:47]} Kh6 {[%emt 0:00:04]} 52. Kb2 {[%emt 0:00:13]} Kg7 {[%emt 0:00:02]} 53. g5 {[%emt 0:00:11]} Kf7 {[%emt 0:00:01]} 54. f5 {[%emt 0:00:27]} Kg7 {[%emt 0:00:05]} 55. g6 {[%emt 0:00:07]} Kh8 {[%emt 0:00:48]} 56. f6 {[%emt 0:00:10]} Kg8 {[%emt 0:00:01]} 57. h6 {[%emt 0:00:21]} Kh8 {[%emt 0:00:04]} 58. f7 {[%emt 0:00:15][%cal Rf7f8]} c3+ {[%emt 0:00:02]} 59. Kxc3 {[%emt 0:00:07][%cal Rf7f8]} b2 {[%emt 0:00:04]} 60. f8=Q# {[%emt 0:00:06] Weighted Error Value: White=0.20 (precise) /Black=0.19 (very precise)} 1-0

[Event "Saint Louis Norm Congress-GM 2022"]
[Site "Saint Louis"]
[Date "2022.05.24"]
[Round "9.2"]
[White "Schitco, Ivan"]
[Black "Matviishen, Viktor"]
[Result "1/2-1/2"]
[ECO "D13"]
[WhiteElo "2484"]
[BlackElo "2517"]
[Annotator "TA"]
[PlyCount "25"]
[EventDate "2022.05.20"]
[EventType "tourn"]
[EventCountry "USA"]
[SourceTitle "playchess.com"]
[Source "ChessBase"]
[SourceQuality "1"]
[TimeControl "5400+30"]

{[%evp 15,23,23,26,0,0,0,9,9,4,8]} 1. d4 {[%emt 0:00:03]} d5 {[%emt 0:00:06]} 2. c4 {[%emt 0:00:17]} c6 {[%emt 0:00:04]} 3. cxd5 {[%emt 0:00:10]} cxd5 {[%emt 0:00:04]} 4. Nc3 {[%emt 0:00:05]} Nf6 {[%emt 0:00:05]} 5. Nf3 {[%emt 0:00:11]} Nc6 {[%emt 0:00:05]} 6. Bf4 {[%emt 0:00:11]} a6 {[%emt 0:00:06]} 7. Rc1 {[%emt 0:00:38]} Bf5 {[%emt 0:00:27]} 8. e3 {[%emt 0:00:31]} e6 {[%emt 0:00:22] The main line 8...e6 scores better than 8...Rc8.} 9. Bd3 {[%emt 0:00:18] D13: Slav Defence: Exchange variation without ...Bf5.} Bxd3 {[%emt 0:00:07] The position is equal.} 10. Qxd3 {[%emt 0:00:02]} Bd6 {[%emt 0:00:07]} 11. Bxd6 {[%emt 0:00:04]} Qxd6 {[%emt 0:00:07]} 12. O-O {[%emt 0:00:04] [#] Not much happened in this game.  Weighted Error Value: White=0.12 (very precise) /Black=0.04 (flawless)} {Predecessor:} O-O $146 13. a3 {½-½ (13) Bruzon Batista,L (2673)-Ortiz Suarez,I (2551) Aguascalientes 2018} 1/2-1/2

[Event "Saint Louis Norm Congress-GM 2022"]
[Site "Saint Louis"]
[Date "2022.05.24"]
[Round "9.3"]
[White "Daggupati, Balaji"]
[Black "Park, Evan"]
[Result "0-1"]
[ECO "C67"]
[WhiteElo "2486"]
[BlackElo "2431"]
[Annotator "TA"]
[PlyCount "64"]
[EventDate "2022.05.20"]
[EventType "tourn"]
[EventCountry "USA"]
[SourceTitle "playchess.com"]
[Source "ChessBase"]
[SourceQuality "1"]
[TimeControl "5400+30"]

{[%evp 9,64,25,22,-30,-31,-28,-21,-36,69,67,73,21,27,16,48,25,17,14,8,0,0,0,0,0,0,12,83,74,82,83,133,81,69,-221,-77,-93,-87,-218,-164,-368,-368,-370,-339,-336,-337,-400,-397,-386,-381,-396,-392,-29995,-366,-29996,-29997,-29998,-29999]} 1. e4 {[%emt 0:00:03]} e5 {[%emt 0:00:01]} 2. Nf3 {[%emt 0:00:07]} Nc6 {[%emt 0:00:02]} 3. Bb5 {[%emt 0:00:07]} Nf6 {[%emt 0:00:02]} 4. O-O {[%emt 0:00:17]} Nxe4 {[%emt 0:00:09]} 5. d4 {[%emt 0:00:06]} Nd6 {[%emt 0:00:06]} 6. Ba4 {[%emt 0:00:05] C67: Ruy Lopez: Berlin Defence: 4 0-0 Nxe4.} (6. Bxc6 $142 bxc6 7. dxe5) 6... exd4 $11 {[%emt 0:03:53]} 7. c3 {[%emt 0:00:22][%cal Bc2c3,Bc3d4,Bd4d5][%mdl 32]} Be7 {[%emt 0:07:44]} 8. cxd4 {[%emt 0:00:43] [#] The position is equal.} Nc4 $146 {[%emt 0:06:22]} ({Better is} 8... O-O $15) ({Predecessor:} 8... b5 9. Bb3 O-O 10. Nc3 Bb7 11. Re1 Bf6 12. Bf4 Na5 13. Bc2 b4 14. Na4 g6 {1-0 (91) Nepomniachtchi,I (2792)-Radjabov,T (2765) Paris 2021}) 9. d5 $1 $14 {[%emt 0:21:41]} N6e5 {[%emt 0:01:01]} 10. Nxe5 {[%emt 0:13:08]} ({White should try} 10. Re1 $16 Nxf3+ 11. Qxf3) 10... Nxe5 $11 {[%emt 0:00:09]} 11. Re1 {[%emt 0:03:44]} Ng6 {[%emt 0:01:42]} 12. h4 {[%emt 0:02:15]} (12. d6 $5 cxd6 13. Nc3 $11) 12... O-O {[%emt 0:03:39]} 13. h5 $36 {[%emt 0:00:10][%mdl 2048] White has some pressure.} Nh4 {[%emt 0:00:50]} 14. d6 {[%emt 0:05:16]} Bxd6 {[%emt 0:03:26][%cal Ob7b5] Strongly threatening ...b5!} 15. Bc2 {[%emt 0:06:46]} Re8 {[%emt 0:09:59]} 16. Rxe8+ {[%emt 0:11:33]} Qxe8 {[%emt 0:00:09]} 17. Nc3 $1 {[%emt 0:06:41] Threatens to win with g3.} Qe6 {[%emt 0:15:50]} (17... h6 $11 {remains equal.}) 18. Bg5 $16 {[%emt 0:04:36][%mdl 1024] White has strong compensation.} Qe5 {[%emt 0:02:28]} 19. Qg4 $1 {[%emt 0:00:04]} Qh2+ {[%emt 0:04:19]} 20. Kf1 {[%emt 0:00:03]} b6 {[%emt 0:00:36][%cal Oh4g2]} (20... Qh1+ $2 21. Ke2 Qxg2 22. Qxh4 $18) 21. Ke2 $2 {[%emt 0:08:41][%mdl 8192]} (21. Qxh4 $14 Ba6+ 22. Ke1 (22. Ne2 Qxh4 23. Bxh4 Re8 $14)) 21... Ba6+ {[%emt 0:01:17]} (21... Nxg2 $19 {has better winning chances. ...Bb7 is the strong threat.} 22. Be4 Ba6+ 23. Kd2 Bf4+ 24. Bxf4 Nxf4 $1) 22. Kd2 $17 {[%emt 0:00:08] aiming for Qe4.} Nxg2 {[%emt 0:02:00] White must now prevent ...Re8.} 23. Be4 {[%emt 0:00:27]} (23. Qe4 $17 Bf4+ 24. Bxf4 Qxf4+ 25. Kd1) 23... Nf4 {[%emt 0:04:45]} 24. Bh4 {[%emt 0:03:31]} (24. Qg3 Qxg3 25. fxg3) 24... Re8 $19 {[%emt 0:04:25][%cal Of7f5,Ba8e8,Be8e4,Be4d4,Bd4b4,Bb4b3][%mdl 32]} (24... f5 $2 25. Bxf5 Rf8 26. Rg1 $19) 25. Rg1 {[%emt 0:06:20][%csl Gg1][%cal Rg4g7]} g6 {[%emt 0:06:53]} 26. hxg6 {[%emt 0:00:10]} hxg6 {[%emt 0:01:07]} (26... Nxg6 $2 27. Rg2 Qf4+ 28. Kc2 $19) 27. Rh1 {[%emt 0:02:00] [#]} Rxe4 $1 {[%emt 0:01:21]} 28. Rxh2 {[%emt 0:00:10]} Rd4+ {[%emt 0:00:09]} 29. Kc2 {[%emt 0:01:06] White threatens Bf6 and mate.} Bd3+ {[%emt 0:00:38] This bishop pair is nice.} 30. Kb3 $2 {[%emt 0:02:26]} (30. Kc1 $19 Ne2+ 31. Qxe2 Bxe2 32. Bg3) 30... Rb4+ {[%emt 0:01:15]} 31. Ka3 {[%emt 0:00:03]} Bc2 {[%emt 0:00:16][%csl Gc2][%cal Rb4a4]} 32. b3 {[%emt 0:01:05]} Rxb3+ {[%emt 0:00:05] Weighted Error Value: White=0.56/Black=0.19 (very precise)} 0-1

[Event "Saint Louis Norm Congress-GM 2022"]
[Site "Saint Louis"]
[Date "2022.05.24"]
[Round "9.4"]
[White "Ruiz Castillo, Joshua Daniel"]
[Black "Repka, Christopher"]
[Result "1-0"]
[ECO "C11"]
[WhiteElo "2473"]
[BlackElo "2524"]
[Annotator "TA"]
[PlyCount "65"]
[EventDate "2022.05.20"]
[EventType "tourn"]
[EventCountry "USA"]
[SourceTitle "playchess.com"]
[Source "ChessBase"]
[SourceQuality "1"]
[TimeControl "5400+30"]

{[%evp 16,65,18,13,13,-44,116,123,126,107,97,108,106,27,31,39,34,0,0,0,0,0,56,0,43,39,41,32,35,47,64,45,188,181,1044,985,5273,4391,2311,1698,29974,29975,29992,29993,29997,29989,29994,29989,29989,29990,29997,29998]} 1. e4 {[%emt 0:00:06]} e6 {[%emt 0:01:08]} 2. d4 {[%emt 0:01:40]} d5 {[%emt 0:00:05]} 3. Nc3 {[%emt 0:00:24]} Nf6 {[%emt 0:01:12]} 4. e5 {[%emt 0:01:14]} Nfd7 {[%emt 0:00:05]} 5. f4 {[%emt 0:00:10]} c5 {[%emt 0:00:03]} 6. Nf3 {[%emt 0:00:04]} Nc6 {[%emt 0:00:02]} 7. Be3 {[%emt 0:00:07]} a6 {[%emt 0:00:02]} 8. Qd2 {[%emt 0:00:32]} b5 {[%emt 0:00:05]} 9. Qf2 {[%emt 0:08:08][%cal Rd4c5]} Qa5 {[%emt 0:09:46] is the legacy move (9...Qb6). C11: French: Classical System: 4 e5 and 4 Bg5 dxe4.} 10. Bd3 {[%emt 0:08:46] [#]} (10. Be2 $11) 10... Nb4 $146 {[%emt 0:09:50]} (10... b4 $15 11. Nd1 c4) ({Predecessor:} 10... b4 11. Nd1 b3+ 12. c3 cxd4 13. Nxd4 Nc5 14. Bb1 Nxd4 15. Bxd4 Qb5 16. Qe2 Bd7 17. Nf2 Qxe2+ 18. Kxe2 Bb5+ 19. Bd3 Nxd3 20. Nxd3 bxa2 21. Rxa2 g5 22. fxg5 h6 {½-½ (22) Mastrovasilis,D (2546)-Nisipeanu,L (2693) Dresden 2007}) 11. O-O {[%emt 0:03:14]} ({Much worse is} 11. dxc5 $6 Nxd3+ 12. cxd3 b4 $11) 11... g6 {[%emt 0:13:52] Prevents f5. White is better.} 12. dxc5 {[%emt 0:09:58] Hoping for a3.} Nxd3 {[%emt 0:04:04]} 13. cxd3 {[%emt 0:00:14]} b4 {[%emt 0:00:01][%csl LRc3,LRc5] [#]} 14. c6 {[%emt 0:12:24] White is more active.} (14. Nxd5 $1 $16 {[%mdl 512] And now Nb6 would win.} exd5 15. Rac1) 14... bxc3 $11 {[%emt 0:00:07]} 15. cxd7+ {[%emt 0:00:03]} Bxd7 {[%emt 0:00:09]} 16. bxc3 {[%emt 0:00:12]} Qxc3 {[%emt 0:00:03]} 17. Rac1 {[%emt 0:02:26]} Qxd3 {[%emt 0:00:05]} 18. Bc5 {[%emt 0:00:07]} Rc8 {[%emt 0:01:01]} ({Black should try} 18... Bxc5 $11 19. Qxc5 Rb8) 19. Bxf8 {[%emt 0:00:15]} ({Better is} 19. Bd6 $1 $14) 19... Rxc1 {[%emt 0:02:09]} 20. Rxc1 {[%emt 0:00:09]} Kxf8 {[%emt 0:00:24]} 21. h3 {[%emt 0:06:06]} Kg7 {[%emt 0:13:24]} 22. Rc7 {[%emt 0:02:07] Threatens to win with Qh4.} Qb5 {[%emt 0:04:49]} 23. Nd4 {[%emt 0:25:54][%cal Bf3d4,Bd4e6,Be6c5][%mdl 32]} Qa4 {[%emt 0:00:10] [#] This move loses the game for Black.} (23... Qb1+ $14 24. Kh2 Rd8) 24. f5 $1 $36 {[%emt 0:00:44][%mdl 2048] White is really pushing.} exf5 {[%emt 0:04:39] [#]} (24... Re8) 25. e6 $1 {[%emt 0:00:42]} ({And not} 25. Qh4 Re8 26. Qf6+ Kg8 27. Nxf5 gxf5 $11) 25... fxe6 {[%emt 0:01:33]} 26. Nxe6+ {[%emt 0:00:44]} ({Stronger than} 26. Qh4 Kf7 27. Qf2 Rc8 $15) 26... Kf6 {[%emt 0:07:33]} 27. Nc5 {[%emt 0:00:05][%csl LRa4,LRd7]} Qd1+ {[%emt 0:00:27]} 28. Kh2 {[%emt 0:00:02] White mates.} Bb5 {[%emt 0:00:21]} 29. Qh4+ {[%emt 0:00:29]} Ke5 {[%emt 0:00:03]} 30. Qe7+ {[%emt 0:01:48]} Kd4 {[%emt 0:00:46]} 31. Nb3+ {[%emt 0:01:45]} Kd3 {[%emt 0:00:05]} 32. Nc1+ {[%emt 0:00:08]} Kd4 {[%emt 0:00:02]} 33. Qc5+ {[%emt 0:00:44] Weighted Error Value: White=0.17 (very precise) /Black=0.74} 1-0